bitfinex-derivatives/quotes_SOLF0:USTF0_20220106
["timestamp","ask_amount","ask_price","bid_price","bid_amount"]
[1641493922560,27.66479,152.63,152.5,15.70907977]
[1641493922761,27.66479,152.63,152.53,4.0]
[1641493922961,27.66479,152.63,152.52,4.0]
[1641493923363,27.66479,152.63,152.51,4.0]
[1641493923564,27.66479,152.63,152.52,4.0]
[1641493924264,55.32958,152.63,152.52,4.0]
[1641493924764,55.32958,152.63,152.53,4.0]
[1641493924963,55.32958,152.63,152.52,4.0]
[1641493925563,20.0,152.62,152.52,4.0]
[1641493925763,24.749,152.62,152.52,4.0]
[1641493926365,4.749,152.62,152.52,4.0]
[1641493926964,4.749,152.62,152.58,60.06933715]
[1641493927566,4.749,152.62,152.59,13.86635711]
[1641493928466,4.749,152.62,152.58,60.06933715]
[1641493929067,55.32958,152.63,152.58,60.06933715]
[1641493929467,55.32958,152.63,152.61,13.86635711]
[1641493931169,55.32958,152.63,152.62,13.86635711]
[1641493931776,9.82,152.67,152.62,13.86635711]
[1641493932470,27.66479,152.66,152.62,13.86635711]
[1641493933070,27.66479,152.66,152.63,13.86635711]
[1641493933971,27.66479,152.66,152.62,13.86635711]
[1641493935372,32.28566434,152.66,152.62,13.86635711]
[1641493936372,27.66479,152.63,152.62,13.86635711]
[1641493936977,31.66479,152.63,152.59,1.43895506]
[1641493937176,30.84810138,152.63,152.62,4.62203518]
[1641493938377,30.84810138,152.63,152.61,4.62203518]
[1641493939878,27.66479,152.63,152.59,1.43895506]
[1641493940078,37.95735806,152.63,152.59,8.35684636]
[1641493940478,65.62214806,152.63,152.59,8.35684636]
[1641493940678,4.62156806,152.62,152.61,4.62202593]
[1641493941780,61.00058,152.63,152.61,4.62202593]
[1641493941979,3.18379921,152.62,152.6,4.62202593]
[1641493943883,3.18379921,152.62,152.61,4.62202593]
[1641493944790,3.18379921,152.62,152.6,4.62202593]
[1641493945589,27.66479,152.63,152.61,4.62202593]
[1641493946489,27.66479,152.63,152.62,4.62202593]
[1641493946691,27.66479,152.65,152.62,4.62202593]
[1641493947391,3.18394898,152.64,152.63,4.62202593]
[1641493947790,7.76494898,152.64,152.63,4.62202593]
[1641493949091,3.18394898,152.64,152.63,4.62202593]
[1641493950598,8.55794898,152.64,152.61,4.62202593]
[1641493951597,3.18394898,152.63,152.61,4.62202593]
[1641493952701,27.66479,152.62,152.61,4.62202593]
[1641493953101,30.84873898,152.62,152.61,4.62202593]
[1641493954704,30.84873898,152.62,152.6,4.62202593]
[1641493955908,54.84873898,152.62,152.6,2.593e-05]
[1641493956111,54.84873898,152.62,152.58,43.20298004]
[1641493956308,51.66479,152.62,152.58,26.10588004]
[1641493956507,20.0,152.59,152.58,23.10588004]
[1641493956706,52.09079,152.59,152.5,27.66479]
[1641493957307,56.09079,152.59,152.51,6.9148703]
[1641493957507,4.0,152.58,152.51,6.9148703]
[1641493957705,56.09079,152.59,152.51,6.9148703]
[1641493958307,4.0,152.58,152.51,6.9148703]
[1641493958506,32.09079,152.59,152.51,6.9148703]
[1641493958706,20.0,152.55,152.51,6.9148703]
[1641493958909,25.091,152.55,152.51,6.9148703]
[1641493959407,25.091,152.55,152.5,27.66479]
[1641493959908,29.091,152.55,152.5,27.66479]
[1641493960110,20.0,152.51,152.47,11.24709392]
[1641493960309,25.539,152.51,152.47,11.24709392]
[1641493960712,27.66479,152.49,152.47,11.24709392]
[1641493961511,27.66479,152.49,152.44,4.0]
[1641493961710,27.66479,152.49,152.42,15.24709392]
[1641493962214,27.66479,152.49,152.42,11.24709392]
[1641493962613,27.66479,152.49,152.42,15.24709392]
[1641493962812,27.66479,152.49,152.42,11.24709392]
[1641493963011,27.66479,152.49,152.42,15.24709392]
[1641493963213,27.66479,152.49,152.44,4.0]
[1641493963417,27.66479,152.51,152.44,4.0]
[1641493963815,27.66479,152.51,152.45,4.0]
[1641493964014,20.0,152.58,152.47,4.0]
[1641493964217,66.55,152.57,152.45,4.0]
[1641493964816,27.66479,152.55,152.45,4.0]
[1641493965016,33.81079,152.55,152.45,4.0]
[1641493965218,20.0,152.54,152.43,87.12134116]
[1641493965417,20.0,152.54,152.43,83.12134116]
[1641493965617,20.0,152.54,152.42,15.24709392]
[1641493965618,20.0,152.54,152.44,55.45655116]
[1641493966315,20.0,152.54,152.43,4.0]
[1641493966517,20.0,152.54,152.46,4.0]
[1641493966716,27.66479,152.55,152.46,4.0]
[1641493967617,27.66479,152.55,152.47,4.0]
[1641493967818,27.66479,152.55,152.5,13.87377336]
[1641493968620,27.66479,152.55,152.52,13.87377336]
[1641493969119,20.0,152.53,152.52,13.87377336]
[1641493969319,5.961,152.53,152.44,55.45655116]
[1641493969718,11.58772402,152.54,152.45,4.0]
[1641493969919,36.93053758,152.57,152.53,4.0]
[1641493970118,55.45655116,152.61,152.54,4.0]
[1641493970519,55.45655116,152.61,152.55,4.0]
[1641493970719,55.45655116,152.61,152.58,4.0]
[1641493970921,9.68,152.66,152.58,6.109]
[1641493972120,26.17320188,152.66,152.56,4.0]
[1641493972522,16.49320188,152.66,152.57,4.0]
[1641493972721,16.49320188,152.66,152.58,4.0]
[1641493972922,27.66479,152.67,152.58,4.0]
[1641493973121,27.66479,152.67,152.57,4.0]
[1641493973321,27.66479,152.67,152.59,4.0]
[1641493973723,27.66479,152.67,152.56,4.0]
[1641493974223,27.66479,152.67,152.57,4.0]
[1641493974622,27.66479,152.67,152.55,67.2374]
[1641493974623,27.66479,152.67,152.62,4.0]
[1641493975023,27.66479,152.67,152.59,27.66479]
[1641493975224,27.66479,152.69,152.62,4.0]
[1641493975423,20.0,152.74,152.62,4.0]
[1641493975625,20.0,152.74,152.63,4.0]
[1641493976026,61.3147,152.75,152.63,4.0]
[1641493976227,61.3147,152.75,152.59,27.66479]
[1641493976228,61.3147,152.75,152.62,4.0]
[1641493976428,65.3147,152.75,152.62,4.0]
[1641493976626,15.649,152.73,152.62,4.0]
[1641493976927,27.66479,152.72,152.62,31.66479]
[1641493977126,4.0,152.69,152.62,27.66479]
[1641493977327,10.088,152.69,152.62,27.66479]
[1641493977526,6.088,152.69,152.6,4.0]
[1641493977726,6.088,152.69,152.59,27.66479]
[1641493977929,6.088,152.69,152.59,31.66479]
[1641493978126,6.088,152.69,152.59,27.66479]
[1641493978526,6.088,152.69,152.6,4.0]
[1641493978726,16.4446926,152.71,152.6,4.0]
[1641493978926,16.4446926,152.71,152.59,55.32958]
[1641493979327,16.4446926,152.71,152.59,59.32958]
[1641493979528,16.4446926,152.71,152.6,4.0]
[1641493980227,16.4446926,152.71,152.62,4.0]
[1641493980826,16.4446926,152.71,152.63,27.66479]
[1641493981027,88.97949,152.75,152.65,4.0]
[1641493981429,88.97949,152.75,152.64,4.0]
[1641493981629,55.45655116,152.76,152.7,4.0]
[1641493981927,16.47551708,152.74,152.71,4.0]
[1641493982326,55.45655116,152.77,152.71,4.0]
[1641493982527,55.45655116,152.77,152.7,4.0]
[1641493982728,135.19575116,152.84,152.71,4.0]
[1641493983028,27.66479,152.81,152.72,27.66479]
[1641493983427,55.45655116,152.84,152.73,4.0]
[1641493983629,55.45655116,152.84,152.72,31.66479]
[1641493983828,55.45655116,152.84,152.73,4.0]
[1641493984229,55.45655116,152.84,152.74,4.0]
[1641493984428,55.45655116,152.84,152.72,27.66479]
[1641493984628,55.45655116,152.84,152.75,4.0]
[1641493985031,55.45655116,152.84,152.78,27.66479]
[1641493985530,4.0,152.87,152.78,27.66479]
[1641493986331,4.0,152.85,152.78,27.66479]
[1641493986532,4.0,152.85,152.73,66.491]
[1641493986732,11.104,152.85,152.73,4.0]
[1641493986932,27.66479,152.84,152.73,4.0]
[1641493987134,83.12134116,152.84,152.73,4.0]
[1641493987333,87.12134116,152.84,152.73,4.0]
[1641493987532,87.12134116,152.84,152.72,59.32958]
[1641493987733,4.0,152.81,152.72,55.32958]
[1641493987934,8.571,152.81,152.72,27.66479]
[1641493988936,4.571,152.81,152.72,27.66479]
[1641493989135,27.66479,152.79,152.72,27.66479]
[1641493990735,11.55875483,152.78,152.72,27.66479]
[1641493990937,36.95537376,152.77,152.72,27.66479]
[1641493991239,42.40037376,152.77,152.72,27.66479]
[1641493993349,5.445,152.77,152.72,27.66479]
[1641493996449,27.66479,152.79,152.72,27.66479]
[1641493997052,4.571,152.81,152.72,27.66479]
[1641493997249,69.7051,152.82,152.72,27.66479]
[1641493997650,3.14301539,152.8,152.72,27.66479]
[1641493997851,10.22401539,152.8,152.72,27.66479]
[1641493998550,3.14301539,152.79,152.72,27.66479]
[1641494001255,24.0,152.73,152.54,65.2363]
[1641494001458,4.0,152.63,152.52,55.45655116]
[1641494001654,9.096,152.63,152.52,55.45655116]
[1641494001854,4.0,152.58,152.47,38.09655116]
[1641494002056,9.0,152.58,152.47,38.09655116]
[1641494002256,5.0,152.58,152.47,38.09655116]
[1641494002458,9.0,152.58,152.45,64.1773]
[1641494002656,5.0,152.58,152.45,64.1773]
[1641494003158,27.66479,152.56,152.46,27.66479]
[1641494003658,27.66479,152.59,152.46,29.08675332]
[1641494004661,27.66479,152.59,152.47,8.33896293]
[1641494006564,3.18473413,152.58,152.47,8.33896293]
[1641494006762,8.10873413,152.58,152.47,8.33896293]
[1641494007161,4.924,152.58,152.47,8.33896293]
[1641494007762,8.924,152.58,152.47,8.33896293]
[1641494009067,4.924,152.58,152.47,8.33896293]
[1641494010970,4.0,152.56,152.47,8.33896293]
[1641494011169,31.66479,152.56,152.47,8.33896293]
[1641494011973,27.66479,152.56,152.47,8.33896293]
[1641494013774,27.66479,152.56,152.47,63.82380079]
[1641494014377,4.0,152.54,152.47,63.82380079]
[1641494014575,9.266,152.54,152.47,63.82380079]
[1641494015377,9.266,152.54,152.47,8.33896293]
[1641494015576,5.266,152.54,152.47,8.33896293]
[1641494016380,9.89007567,152.54,152.47,8.33896293]
[1641494016979,5.266,152.54,152.47,8.33896293]
[1641494017179,5.266,152.54,152.49,27.66479]
[1641494017579,32.28886567,152.56,152.49,27.66479]
[1641494018080,32.28886567,152.56,152.5,8.33896293]
[1641494019081,27.66479,152.56,152.5,8.33896293]
[1641494019481,40.95537376,152.64,152.5,8.33896293]
[1641494019683,36.95537376,152.64,152.5,8.33896293]
[1641494019883,36.95537376,152.65,152.5,8.33896293]
[1641494020882,3.1565187,152.7,152.5,8.33896293]
[1641494021284,30.8213087,152.7,152.6,27.66479]
[1641494021683,4.0,152.66,152.6,27.66479]
[1641494022782,27.66479,152.7,152.6,27.66479]
[1641494025286,3.18229107,152.69,152.61,1.43878955]
[1641494025486,14.74912099,152.69,152.61,1.43878955]
[1641494026088,4.0,152.65,152.61,1.43878955]
[1641494026286,4.0,152.65,152.61,8.35627421]
[1641494027087,4.0,152.65,152.61,1.43878955]
[1641494029291,4.0,152.64,152.61,1.43878955]
[1641494029690,3.18264004,152.64,152.61,1.43878955]
[1641494029893,7.18264004,152.64,152.61,1.43878955]
[1641494030291,3.18264004,152.64,152.61,1.43878955]
[1641494030493,4.0,152.66,152.61,1.43878955]
[1641494031391,41.52776532,152.68,152.61,22.21924556]
[1641494031991,4.0,152.64,152.61,22.21924556]
[1641494032190,41.52776532,152.68,152.61,22.21924556]
[1641494032393,4.0,152.66,152.61,1.43878955]
[1641494032793,4.0,152.65,152.61,1.43878955]
[1641494032996,4.0,152.66,152.61,1.43878955]
[1641494033194,3.18237782,152.65,152.61,1.43878955]
[1641494034295,3.18237782,152.65,152.61,22.21925066]
[1641494036396,7.18237782,152.65,152.61,22.21925066]
[1641494036598,4.0,152.65,152.61,22.21925066]
[1641494037599,4.0,152.65,152.61,1.43878955]
[1641494037899,3.01833914,152.65,152.61,1.43878955]
[1641494038299,3.01833914,152.65,152.6,41.52776532]
[1641494038699,13.86297532,152.67,152.6,41.52776532]
[1641494038900,13.86297532,152.67,152.6,46.92876532]
[1641494039102,36.95537376,152.71,152.64,0.98166086]
[1641494039300,36.95537376,152.7,152.64,5.80266086]
[1641494039500,36.95537376,152.7,152.69,27.66479]
[1641494040505,3.01833914,152.74,152.69,29.10349646]
[1641494040702,11.55721204,152.75,152.69,29.10349646]
[1641494041100,3.01833914,152.7,152.69,29.10349646]
[1641494041307,7.38933914,152.7,152.69,29.10349646]
[1641494041502,7.38933914,152.7,152.66,27.66479]
[1641494041702,3.01833914,152.68,152.66,27.66479]
[1641494042103,3.01833914,152.67,152.57,55.48483786]
[1641494042303,3.01833914,152.63,152.57,55.48483786]
[1641494042503,3.01833914,152.62,152.56,55.48483786]
[1641494042802,3.01833914,152.61,152.56,55.48483786]
[1641494043004,3.01833914,152.6,152.56,55.48483786]
[1641494043204,5.064,152.63,152.56,55.48483786]
[1641494043403,3.01833914,152.62,152.56,55.48483786]
[1641494043804,3.01833914,152.62,152.54,27.66479]
[1641494044207,3.01833914,152.61,152.54,27.66479]
[1641494044404,5.064,152.63,152.54,27.66479]
[1641494044604,3.01833914,152.61,152.54,27.66479]
[1641494044908,3.01833914,152.61,152.55,6.91976827]
[1641494045305,5.064,152.63,152.55,6.91976827]
[1641494045506,8.08233914,152.63,152.57,27.66479]
[1641494045905,5.064,152.63,152.57,27.66479]
[1641494046306,3.01833914,152.62,152.57,27.66479]
[1641494046507,3.01833914,152.62,152.58,6.91976827]
[1641494046808,3.01833914,152.61,152.58,6.91976827]
[1641494047204,5.064,152.63,152.58,6.91976827]
[1641494047605,3.01833914,152.6,152.58,6.91976827]
[1641494047806,8.74233914,152.6,152.58,6.91976827]
[1641494048509,5.724,152.6,152.58,6.91976827]
[1641494049310,3.01833914,152.62,152.58,6.91976827]
[1641494051109,67.4002,152.65,152.58,6.91976827]
[1641494051711,3.01833914,152.61,152.58,6.91976827]
[1641494051911,8.29933914,152.61,152.58,6.91976827]
[1641494052109,5.281,152.61,152.58,6.91976827]
[1641494052910,3.01833914,152.6,152.58,6.91976827]
[1641494053610,3.01833914,152.6,152.57,27.66479]
[1641494054514,5.281,152.61,152.57,27.66479]
[1641494055914,3.01833914,152.6,152.57,27.66479]
[1641494056215,3.01833914,152.59,152.57,27.66479]
[1641494056616,5.281,152.61,152.57,27.66479]
[1641494057017,3.01833914,152.6,152.57,27.66479]
[1641494057218,8.35233914,152.6,152.57,27.66479]
[1641494057417,3.01833914,152.59,152.57,27.66479]
[1641494058218,9.84933914,152.59,152.58,1.4392878]
[1641494058920,13.84933914,152.59,152.58,8.78e-05]
[1641494059118,9.84933914,152.59,152.58,8.78e-05]
[1641494061020,9.84933914,152.59,152.52,6.91989099]
[1641494061221,6.831,152.59,152.52,6.91989099]
[1641494061421,3.01833914,152.54,152.52,6.91989099]
[1641494061623,8.33233914,152.54,152.52,6.91989099]
[1641494061820,5.314,152.54,152.52,6.91989099]
[1641494062023,40.95537376,152.65,152.52,6.91989099]
[1641494062223,61.3934,152.64,152.54,0.98166086]
[1641494062424,64.41173914,152.64,152.54,0.98166086]
[1641494062623,36.95537376,152.65,152.54,0.98166086]
[1641494062823,36.95537376,152.69,152.55,0.98166086]
[1641494063122,100.78117376,152.69,152.55,0.98166086]
[1641494063326,3.01833914,152.68,152.56,0.98166086]
[1641494063524,100.78117376,152.69,152.56,7.94266086]
[1641494063823,100.78117376,152.69,152.62,27.66479]
[1641494064027,14.5853918,152.68,152.62,27.66479]
[1641494064225,3.01833914,152.66,152.62,27.66479]
[1641494064425,11.56705266,152.68,152.62,27.66479]
[1641494064626,3.01833914,152.64,152.62,27.66479]
[1641494064827,63.8258,152.69,152.62,27.66479]
[1641494065126,3.01833914,152.66,152.62,27.66479]
[1641494065327,3.01833914,152.68,152.62,27.66479]
[1641494065828,3.01833914,152.67,152.62,27.66479]
[1641494066228,63.8258,152.69,152.62,27.66479]
[1641494066429,3.01833914,152.65,152.62,27.66479]
[1641494066628,3.01833914,152.63,152.54,55.48483786]
[1641494066828,4.0,152.62,152.54,55.48483786]
[1641494067130,3.01833914,152.56,152.54,55.48483786]
[1641494067427,3.01833914,152.58,152.54,55.48483786]
[1641494067627,6.601,152.59,152.54,55.48483786]
[1641494067828,3.01833914,152.57,152.51,45.83620204]
[1641494068528,34.26579,152.59,152.51,45.83620204]
[1641494068729,34.26579,152.59,152.52,6.91964182]
[1641494069230,3.01833914,152.58,152.52,6.91964182]
[1641494069428,3.01833914,152.58,152.55,13.86861491]
[1641494069928,34.26579,152.59,152.55,13.86861491]
[1641494070828,3.01833914,152.58,152.55,13.86861491]
[1641494071030,34.26579,152.59,152.54,13.86861491]
[1641494071227,3.01833914,152.58,152.54,13.86861491]
[1641494071428,37.28412914,152.59,152.54,13.86861491]
[1641494071629,34.26579,152.59,152.54,13.86861491]
[1641494071830,37.28412914,152.59,152.54,13.86861491]
[1641494072529,37.28412914,152.59,152.56,13.86861491]
[1641494073029,37.28412914,152.59,152.55,13.86861491]
[1641494074029,6.601,152.59,152.55,13.86861491]
[1641494074230,78.31221491,152.62,152.55,13.86861491]
[1641494074631,3.01833914,152.61,152.55,13.86861491]
[1641494074832,3.01833914,152.61,152.59,13.86861491]
[1641494075430,3.01833914,152.6,152.59,13.86861491]
[1641494076730,3.01833914,152.6,152.57,13.86861491]
[1641494077633,3.01833914,152.6,152.58,13.86861491]
[1641494078131,27.66479,152.62,152.58,13.86861491]
[1641494078330,3.01833914,152.6,152.57,13.86861491]
[1641494078731,27.66479,152.62,152.57,13.86861491]
[1641494078931,3.01833914,152.6,152.57,13.86861491]
[1641494079233,27.66479,152.62,152.57,13.86861491]
[1641494079631,3.01833914,152.6,152.57,13.86861491]
[1641494079831,3.01833914,152.59,152.57,13.86861491]
[1641494081832,4.62261797,152.61,152.57,13.86861491]
[1641494082033,7.64095711,152.61,152.57,13.86861491]
[1641494082233,4.62261797,152.61,152.57,19.01161491]
[1641494082835,4.62261797,152.61,152.59,0.98166086]
[1641494083033,4.62261797,152.61,152.6,0.98166086]
[1641494083233,4.62261797,152.61,152.58,0.98166086]
[1641494083433,4.62261797,152.64,152.6,13.86861491]
[1641494085335,4.62261797,152.64,152.6,20.78825673]
[1641494086135,3.01833914,152.63,152.6,20.78825673]
[1641494086335,4.62261797,152.64,152.6,20.78825673]
[1641494086935,4.62261797,152.63,152.59,41.53340491]
[1641494088038,4.62261797,152.64,152.6,20.78805405]
[1641494088437,4.62261797,152.64,152.61,0.98166086]
[1641494088739,4.62261797,152.64,152.6,20.78805405]
[1641494089238,11.19161797,152.64,152.6,20.78805405]
[1641494089640,11.19161797,152.64,152.61,13.86861491]
[1641494090141,11.19161797,152.64,152.62,27.66479]
[1641494090342,6.569,152.64,152.62,41.53340491]
[1641494093146,4.62261797,152.66,152.62,41.53340491]
[1641494093645,7.64095711,152.66,152.62,41.53340491]
[1641494095146,3.01833914,152.65,152.62,41.53340491]
[1641494095644,7.64095711,152.66,152.62,41.53340491]
[1641494095844,4.62261797,152.66,152.62,41.53340491]
[1641494096044,3.01833914,152.65,152.62,41.53340491]
[1641494096243,9.17533914,152.65,152.62,41.53340491]
[1641494096744,13.79795711,152.65,152.62,27.66479]
[1641494097044,10.77961797,152.65,152.62,27.66479]
[1641494097246,3.01833914,152.64,152.61,13.86861491]
[1641494097644,7.64095711,152.64,152.63,4.62132062]
[1641494098446,3.01833914,152.64,152.63,4.62132062]
[1641494099445,7.6397073,152.64,152.6,22.22750932]
[1641494100047,4.62136816,152.64,152.6,22.22750932]
[1641494100447,6.157,152.65,152.63,4.62157381]
[1641494100648,3.01833914,152.64,152.63,7.381e-05]
[1641494101249,6.20119536,152.64,152.6,1.43944717]
[1641494101649,3.01833914,152.63,152.6,1.43944717]
[1641494102049,6.157,152.65,152.59,27.66479]
[1641494102250,6.20130274,152.63,152.59,27.66479]
[1641494102450,12.55230274,152.63,152.59,27.66479]
[1641494102849,9.36933914,152.63,152.6,1.4390444]
[1641494103050,6.351,152.63,152.6,1.4390444]
[1641494103653,13.8659889,152.65,152.6,1.4390444]
[1641494104252,16.88432804,152.65,152.6,1.4390444]
[1641494104752,13.8659889,152.65,152.6,1.4390444]
[1641494104951,3.01833914,152.66,152.6,0.98166086]
[1641494105150,16.88379904,152.66,152.6,0.98166086]
[1641494105852,36.95537376,152.69,152.62,14.85027577]
[1641494106053,13.86343151,152.69,152.62,21.49727577]
[1641494106354,13.86343151,152.69,152.68,27.66479]
[1641494106554,13.86343151,152.69,152.68,33.05779]
[1641494106954,3.18099895,152.69,152.68,33.05779]
[1641494107755,3.18099895,152.69,152.68,34.03945086]
[1641494107956,3.18099895,152.69,152.68,33.05779]
[1641494108556,16.88177065,152.72,152.68,33.05779]
[1641494108758,3.18061856,152.71,152.68,34.49699319]
[1641494109657,3.01833914,152.72,152.68,27.66479]
[1641494109856,3.01833914,152.71,152.69,1.43943026]
[1641494110056,11.56167756,152.74,152.69,1.43943026]
[1641494110258,3.01833914,152.72,152.69,1.43943026]
[1641494110456,3.01833914,152.7,152.69,1.43943026]
[1641494110656,14.74226379,152.74,152.68,27.66479]
[1641494110857,16.87838462,152.72,152.68,27.66479]
[1641494111358,13.86004548,152.72,152.68,27.66479]
[1641494111561,3.01833914,152.74,152.68,27.66479]
[1641494111759,16.87728849,152.74,152.69,1.439502]
[1641494112558,16.87728849,152.74,152.68,28.64645086]
[1641494112759,17.03900713,152.73,152.68,27.66479]
[1641494113663,17.03900713,152.73,152.69,1.43952815]
[1641494114470,13.85894935,152.73,152.68,27.66479]
[1641494115265,13.85894935,152.73,152.69,0.98166086]
[1641494115465,20.05552257,152.74,152.69,1.43962358]
[1641494115665,17.03718343,152.74,152.69,1.43962358]
[1641494116266,17.03718343,152.74,152.68,27.66479]
[1641494116668,3.01833914,152.73,152.68,27.66479]
[1641494116866,17.03718343,152.74,152.69,0.98166086]
[1641494117268,13.85712565,152.74,152.69,0.98166086]
[1641494117468,27.66479,152.76,152.69,0.98166086]
[1641494117668,27.66479,152.76,152.68,21.25602915]
[1641494117968,31.66479,152.76,152.68,21.25602915]
[1641494118169,27.66479,152.76,152.68,21.25602915]
[1641494119171,68.2349,152.78,152.68,21.25602915]
[1641494119971,64.2349,152.78,152.68,21.25602915]
[1641494120172,4.0,152.77,152.68,21.25602915]
[1641494120772,4.0,152.77,152.74,27.66479]
[1641494121172,4.0,152.75,152.68,21.25602915]
[1641494121673,4.0,152.74,152.68,21.25602915]
[1641494121873,7.17845046,152.74,152.69,1.43978489]
[1641494122673,7.17845046,152.74,152.71,27.66479]
[1641494122872,3.17845046,152.74,152.71,27.66479]
[1641494123073,7.17845046,152.73,152.71,27.66479]
[1641494123274,3.17845046,152.73,152.71,27.66479]
[1641494123473,3.17845046,152.73,152.69,1.43978489]
[1641494123674,7.17845046,152.73,152.69,1.43978489]
[1641494123875,13.85712565,152.73,152.68,21.25602915]
[1641494124374,17.85712565,152.73,152.68,21.25602915]
[1641494124774,13.85712565,152.73,152.68,21.25602915]
[1641494124974,21.03557611,152.74,152.69,1.43930041]
[1641494125777,3.17845046,152.73,152.69,1.43930041]
[1641494128177,4.0,152.74,152.69,1.43930041]
[1641494128377,4.0,152.74,152.69,15.30791532]
[1641494128779,4.0,152.74,152.71,27.66479]
[1641494128979,4.0,152.72,152.71,27.66479]
[1641494130082,4.0,152.72,152.71,29.10409041]
[1641494131583,13.85712565,152.76,152.71,29.10409041]
[1641494132285,48.51006523,152.79,152.71,29.10409041]
[1641494132286,13.85712565,152.75,152.71,27.66479]
[1641494132485,13.85712565,152.75,152.71,34.23679]
[1641494132886,17.85712565,152.78,152.72,1.43992277]
[1641494133084,13.85712565,152.78,152.77,27.66479]
[1641494133483,17.85712565,152.78,152.77,27.66479]
[1641494134685,7.17789706,152.78,152.77,27.66479]
[1641494138291,7.17789706,152.78,152.77,1.19689]
[1641494138491,11.17789706,152.78,152.71,13.86861491]
[1641494138691,4.0,152.72,152.71,13.86861491]
[1641494139391,4.0,152.72,152.68,41.53340491]
[1641494140295,4.0,152.72,152.69,1.43984011]
[1641494140795,4.0,152.74,152.69,1.43984011]
[1641494141094,83.96142565,152.76,152.69,1.43984011]
[1641494141996,70.1043,152.76,152.71,13.86861491]
[1641494142297,13.85712565,152.78,152.71,20.68161491]
[1641494142497,4.0,152.76,152.71,20.68161491]
[1641494142903,4.0,152.76,152.72,1.43984011]
[1641494143299,4.0,152.76,152.72,29.10463011]
[1641494143998,4.0,152.76,152.73,1.43984011]
[1641494144298,13.85712565,152.78,152.73,1.43984011]
[1641494145300,13.85712565,152.78,152.77,27.66479]
[1641494145504,13.85712565,152.78,152.77,32.99379]
[1641494145903,2.565e-05,152.8,152.77,32.99379]
[1641494146903,4.0,152.83,152.77,32.99379]
[1641494147103,48.50234637,152.85,152.77,32.99379]
[1641494147304,48.50234637,152.85,152.8,27.66479]
[1641494148004,4.0,152.83,152.8,27.66479]
[1641494148203,11.54697261,152.85,152.8,27.66479]
[1641494148805,4.0,152.81,152.8,27.66479]
[1641494149007,11.54697261,152.85,152.8,27.66479]
[1641494149406,4.0,152.81,152.8,27.66479]
[1641494149607,11.54697261,152.85,152.8,27.66479]
[1641494149808,4.0,152.81,152.8,27.66479]
[1641494150006,11.54697261,152.85,152.8,27.66479]
[1641494150007,66.8281,152.86,152.8,27.66479]
[1641494150208,4.0,152.82,152.8,32.37079]
[1641494150408,66.8281,152.86,152.8,32.37079]
[1641494150609,4.0,152.81,152.8,4.706]
[1641494151310,4.0,152.81,152.77,27.66479]
[1641494151508,70.8281,152.86,152.77,27.66479]
[1641494151708,4.0,152.81,152.77,27.66479]
[1641494152108,70.8281,152.86,152.77,27.66479]
[1641494152308,4.0,152.85,152.77,27.66479]
[1641494152508,4.0,152.78,152.77,27.66479]
[1641494152709,7.034,152.79,152.77,27.66479]
[1641494153713,4.0,152.8,152.77,27.66479]
[1641494155011,15.54299324,152.85,152.77,27.66479]
[1641494155212,4.0,152.78,152.77,27.66479]
[1641494155813,5.662,152.81,152.77,27.66479]
[1641494156013,57.392367,152.85,152.77,27.66479]
[1641494156213,4.0,152.81,152.77,27.66479]
[1641494157313,52.498367,152.85,152.77,27.66479]
[1641494157613,4.0,152.79,152.77,27.66479]
[1641494157813,4.0,152.8,152.77,27.66479]
[1641494158316,4.0,152.82,152.77,27.66479]
[1641494158814,11.54299324,152.85,152.77,27.66479]
[1641494159415,11.54299324,152.85,152.77,55.32958]
[1641494159615,4.0,152.82,152.77,55.32958]
[1641494159815,11.54299324,152.85,152.77,55.32958]
[1641494160017,4.0,152.83,152.77,55.32958]
[1641494160217,4.0,152.85,152.78,6.92197764]
[1641494160419,4.0,152.85,152.78,11.82297764]
[1641494161019,64.62016376,152.88,152.78,11.82297764]
[1641494161217,11.53894282,152.87,152.83,4.61521515]
[1641494161416,4.0,152.84,152.83,11.36121515]